bitfinex/quotes_ETHUSD_20240717
["timestamp","ask_amount","ask_price","bid_price","bid_amount"]
[1721216950012,2.89127,3458.7,3457.7,3.54779935]
[1721216950215,2.89134,3458.6,3457.7,3.54779935]
[1721216950524,2.89142,3458.5,3457.7,3.54779935]
[1721216950807,2.89134,3458.6,3457.8,2.89199]
[1721216951008,4.7985,3459.3,3457.9,2.2849]
[1721216951221,2.89115,3458.9,3458.0,0.29406794]
[1721216951372,2.89118,3458.8,3458.0,0.29406794]
[1721216951875,2.89118,3458.8,3458.0,6.07766794]
[1721216952075,2.89114,3458.9,3458.0,0.29406794]
[1721216952274,2.89122,3458.8,3458.1,0.54709479]
[1721216952573,2.89126,3458.7,3458.1,0.54709479]
[1721216952775,2.89114,3458.9,3458.1,0.54709479]
[1721216953087,2.89118,3458.8,3458.1,0.54709479]
[1721216953714,2.89152,3458.4,3457.9,2.2849]
[1721216954019,2.89152,3458.4,3457.6,2.89212]
[1721216954229,2.89152,3458.4,3457.5,6.3256193]
[1721216954433,2.459,3458.9,3457.5,3.9045193]
[1721216954434,2.89176,3458.1,3457.5,3.9045193]
[1721216954615,2.89198,3457.9,3457.5,3.9045193]
[1721216955172,5.78398,3457.9,3457.5,3.9045193]
[1721216955479,2.89198,3457.9,3457.5,3.9045193]
[1721216955707,2.8921,3457.7,3457.5,3.9045193]
[1721216955872,2.89205,3457.8,3457.1,2.92]
[1721216956071,2.89209,3457.7,3457.1,5.66717793]
[1721216957018,2.89209,3457.7,3456.9,16.2845193]
[1721216957221,2.89244,3457.3,3456.9,16.2845193]
[1721216957396,5.78464,3457.5,3456.9,16.2845193]
[1721216957711,2.89224,3457.6,3456.9,16.2845193]
[1721216957923,2.89227,3457.5,3456.9,16.2845193]
[1721216958291,2.89245,3457.3,3456.9,16.2845193]
[1721216959923,2.459,3457.7,3456.9,18.43672023]
[1721216959924,5.35113,3457.7,3456.9,18.43672023]
[1721216960133,3.0,3458.1,3456.9,18.43672023]
[1721216960134,2.89194,3457.9,3456.9,18.43672023]
[1721216960427,2.89239,3457.4,3456.6,9.1419993]
[1721216960641,2.89243,3457.3,3456.6,2.3445]
[1721216963115,2.89247,3457.3,3456.3,6.7976993]
[1721216963328,2.89222,3457.6,3456.5,2.89303]
[1721216963543,2.89226,3457.5,3456.7,2.89288]
[1721216963719,2.89216,3457.7,3456.8,2.89284]
[1721216963922,3.0,3457.6,3456.9,0.459284]
[1721216964130,2.459,3458.1,3457.0,4.05525045]
[1721216964131,5.3508,3458.1,3457.0,4.05525045]
[1721216964331,5.3508,3458.1,3457.4,2.89233]
[1721216964332,2.459,3458.1,3457.4,2.89233]
[1721216964543,2.89169,3458.2,3457.4,2.89233]
[1721216965541,2.89158,3458.4,3457.4,2.89233]
[1721216965844,2.89158,3458.4,3457.5,3.470735]
[1721216966040,2.89146,3458.5,3457.6,2.89215]
[1721216966257,2.89135,3458.6,3457.7,2.4613]
[1721216966438,2.459,3458.9,3457.7,2.4613]
[1721216966439,2.89159,3458.3,3457.7,2.4613]
[1721216966621,2.89159,3458.3,3457.5,0.578475]
[1721216966810,2.89157,3458.4,3457.6,0.5932065]
[1721216967012,2.459,3458.5,3457.6,0.5932065]
[1721216967208,2.89135,3458.6,3457.7,2.89206]
[1721216967408,2.8912,3458.8,3457.7,2.89202]
[1721216967649,5.89127,3458.7,3457.8,2.89194]
[1721216967833,3.0,3458.7,3457.6,2.2932065]
[1721216968043,2.89136,3458.6,3457.7,3.46847115]
[1721216968464,2.89136,3458.6,3457.8,2.892]
[1721216970253,3.0,3458.7,3457.6,5.1853765]
[1721216970254,2.89159,3458.3,3457.6,0.5932065]
[1721216970464,2.89159,3458.3,3457.5,0.578475]
[1721216970618,2.89159,3458.3,3457.5,3.470655]
[1721216972032,2.89151,3458.4,3457.6,2.89213]
[1721216972334,2.89151,3458.4,3457.6,4.59213]
[1721216972540,2.89129,3458.7,3457.8,2.89198]
[1721216972541,2.89136,3458.6,3457.8,2.89198]
[1721216972752,5.89136,3458.6,3457.8,2.89198]
[1721216972971,2.89143,3458.5,3457.7,0.8062785]
[1721216973373,3.0,3458.6,3457.8,2.892]
[1721216973574,3.0,3458.6,3457.9,0.82904085]
[1721216973803,3.0,3458.7,3457.9,3.72089085]
[1721216975172,3.0,3458.7,3458.0,2.89184]
[1721216975815,3.0,3458.7,3458.0,5.34364]
[1721216976030,2.89097,3459.1,3458.1,0.05782943]
[1721216976172,2.89079,3459.3,3458.4,2.89144]
[1721216976376,2.89079,3459.3,3458.5,2.89141]
[1721216978698,2.89079,3459.3,3458.6,2.89134]
[1721216978888,2.89079,3459.3,3458.6,0.578289]
[1721216979091,2.89084,3459.2,3458.4,2.89143]
[1721216979303,2.89084,3459.2,3458.4,5.78286]
[1721216979501,2.89084,3459.2,3458.4,2.89143]
[1721216979685,2.89098,3459.1,3458.2,3.22550703]
[1721216979908,3.36043594,3459.7,3458.2,0.33386703]
[1721216980217,2.89089,3459.2,3458.3,3.73057863]
[1721216980375,2.89092,3459.1,3458.3,2.89156]
[1721216981175,2.89092,3459.1,3458.2,0.33386703]
[1721216981176,2.89101,3459.0,3458.2,0.33386703]
[1721216981423,2.89123,3458.8,3458.1,3.9045193]
[1721216981612,2.89135,3458.6,3458.1,3.9045193]
[1721216981917,2.89123,3458.8,3457.9,2.89191]
[1721216982124,2.89127,3458.7,3457.9,2.89191]
[1721216983609,0.59539894,3459.1,3458.0,3.9673]
[1721216983823,2.89076,3459.3,3458.5,2.89137]
[1721216984025,2.89074,3459.4,3458.6,2.89134]
[1721216985513,5.34945,3459.7,3458.8,2.3716]
[1721216985849,5.34945,3459.7,3458.8,5.26276]
[1721216985850,5.8905,3459.6,3458.8,5.26276]
[1721216986038,7.21744474,3459.6,3458.8,5.26276]
[1721216987048,3.0,3459.6,3458.8,5.26276]
[1721216989841,5.89053,3459.6,3458.8,5.26276]
[1721216990040,5.89053,3459.6,3458.8,2.3716]
[1721216990337,2.8906,3459.5,3458.4,5.28633]
[1721216990675,2.89074,3459.4,3458.5,2.89142]
[1721216990974,3.7257,3459.4,3458.6,2.89133]
[1721216991279,2.89076,3459.3,3458.4,5.28633]
[1721216992186,2.8906,3459.5,3458.6,2.89134]
[1721216992342,2.8906,3459.5,3458.6,5.78262]
[1721216992541,5.89051,3459.6,3458.8,2.89117]
[1721216992980,3.0,3459.6,3458.8,4.59111]
[1721216993276,3.0,3459.7,3458.9,2.89103]
[1721216993775,5.89048,3459.7,3458.9,2.89103]
[1721216995737,2.89052,3459.6,3458.7,0.987752]
[1721216995944,3.0,3459.5,3458.7,2.8912]
[1721216996782,5.89059,3459.5,3458.7,2.8912]
[1721217000495,2.89077,3459.3,3458.5,2.89135]
[1721217001795,2.89084,3459.2,3458.2,3.9045193]
[1721217002095,2.89102,3459.0,3458.3,0.99079593]
[1721217002597,2.89097,3459.1,3458.3,3.88235593]
[1721217003096,2.89101,3459.0,3458.3,3.88235593]
[1721217004398,2.89084,3459.2,3458.3,3.88233593]
[1721217004613,2.89073,3459.4,3458.6,2.89133]
[1721217004798,2.89073,3459.4,3458.6,3.44954259]
[1721217005890,2.89077,3459.3,3458.6,0.55821259]
[1721217006687,5.89065,3459.5,3458.7,2.407]
[1721217006933,3.0,3459.5,3458.7,5.29825]
[1721217007154,3.0,3459.5,3458.8,3.76595126]
[1721217007284,3.0,3459.7,3458.8,3.76595126]
[1721217007485,0.59539894,3460.2,3458.9,0.05781586]
[1721217007686,2.88992,3460.3,3459.5,5.27324]
[1721217008629,2.89025,3460.0,3459.1,2.4343]
[1721217008828,2.89053,3459.6,3458.8,2.92]
[1721217009214,2.459,3459.6,3458.6,3.9045193]
[1721217009416,2.89085,3459.2,3458.6,3.9045193]
[1721217009600,2.89085,3459.2,3458.4,2.8915]
[1721217009806,2.89085,3459.2,3458.4,1.46122152]
[1721217010020,2.89102,3459.0,3458.2,6.7045193]
[1721217010224,2.89139,3458.6,3458.2,3.9045193]
[1721217010594,2.89143,3458.5,3458.2,3.9045193]
[1721217011005,2.89128,3458.7,3458.2,3.9045193]
[1721217011407,2.89111,3458.9,3458.2,3.9045193]
[1721217011632,3.59539894,3459.1,3458.2,4.46497123]
[1721217011633,3.0,3458.8,3458.2,4.46497123]
[1721217012040,2.89089,3459.2,3458.2,4.46497123]
[1721217012232,2.89084,3459.2,3458.3,2.89157]
[1721217012532,2.89084,3459.2,3458.2,4.46497123]
[1721217012709,2.89084,3459.2,3458.2,7.35663123]
[1721217013048,2.89076,3459.3,3458.4,2.2704]
[1721217013836,2.89068,3459.4,3458.4,5.1619]
[1721217013998,3.48590894,3459.6,3458.7,1.7]
[1721217014192,0.89309842,3459.7,3458.7,1.7]
[1721217014193,0.59539894,3459.7,3458.8,3.350232]
[1721217014424,3.78343842,3459.8,3458.8,3.350232]
[1721217014425,0.59539894,3460.0,3458.9,2.94886403]
[1721217014622,3.48541894,3460.2,3459.2,2.89078]
[1721217014832,2.89002,3460.2,3459.3,2.89073]
[1721217015131,0.59539894,3460.3,3459.5,2.89057]
[1721217015132,2.88995,3460.3,3459.5,2.89057]
[1721217015330,2.89009,3460.1,3459.1,4.5909]
[1721217015530,2.89009,3460.1,3459.2,4.27136893]
[1721217015702,2.89009,3460.1,3459.3,2.89075]
[1721217016519,2.89009,3460.1,3459.2,1.38060893]
[1721217016694,2.89018,3460.0,3459.2,1.38060893]
[1721217017332,2.89018,3460.0,3459.2,4.27138893]
[1721217017535,2.89018,3460.0,3459.3,1.51865082]
[1721217018705,2.89035,3459.8,3459.0,6.3241193]
[1721217019311,2.89059,3459.5,3459.0,3.9045193]
[1721217019715,2.89059,3459.5,3458.8,0.459132]
[1721217019716,2.89068,3459.4,3458.8,0.459132]
[1721217020116,2.89061,3459.5,3458.9,0.95335913]
[1721217020314,2.89068,3459.4,3458.9,0.95335913]
[1721217020548,2.89068,3459.4,3458.8,0.459132]
[1721217020725,2.89077,3459.3,3458.6,6.1831193]
[1721217020930,2.89077,3459.3,3458.6,2.2786]
[1721217021134,2.89077,3459.3,3458.3,4.92935842]
[1721217021335,2.89108,3459.0,3458.3,3.9045193]
[1721217021642,2.3827,3459.3,3458.3,3.9045193]
[1721217021643,2.89111,3458.9,3458.3,3.9045193]
[1721217022307,2.89134,3458.6,3457.9,5.41251542]
[1721217022505,2.89134,3458.6,3457.8,4.592]
[1721217023142,2.89145,3458.5,3457.7,2.3172]
[1721217023321,2.89151,3458.4,3457.7,2.3172]
[1721217024435,2.89151,3458.4,3457.7,3.80981293]
[1721217025216,2.89134,3458.6,3457.7,6.70190293]
[1721217025424,5.35021,3458.8,3457.7,6.70190293]
[1721217025425,2.89121,3458.8,3457.7,6.70190293]
[1721217025619,2.89129,3458.7,3457.8,2.892]
[1721217026130,2.89101,3459.0,3458.0,4.59184]
[1721217026334,2.89101,3459.0,3458.1,3.89146507]
[1721217026541,2.89106,3459.0,3458.1,3.89146507]
[1721217026725,2.89114,3458.9,3458.1,3.89146507]
[1721217027118,2.89114,3458.9,3458.1,0.99971507]
[1721217027349,3.05439894,3459.2,3457.7,8.20996835]
[1721217027508,3.05439894,3459.2,3457.8,2.892]
[1721217027509,2.89135,3458.6,3457.8,2.892]
[1721217028106,0.59539894,3459.0,3458.1,2.89174]
[1721217028311,2.89104,3459.0,3458.2,2.89166]
[1721217029248,2.89134,3458.7,3457.8,2.89194]
[1721217029551,2.89136,3458.6,3457.8,2.89194]
[1721217029959,2.89126,3458.7,3457.9,2.89192]
[1721217030131,2.89134,3458.6,3457.9,2.89192]
[1721217030457,2.89134,3458.6,3457.9,4.85454257]
[1721217030665,2.89117,3458.8,3457.9,4.85454257]
[1721217031166,2.89128,3458.7,3457.9,4.85454257]
[1721217031722,2.89135,3458.6,3457.9,4.85454257]
[1721217031919,2.95042014,3458.6,3457.9,4.85454257]
[1721217032133,2.95042014,3458.6,3457.7,6.70187293]
[1721217032134,2.95042014,3458.6,3457.7,2.3172]
[1721217032329,0.05907014,3458.6,3457.6,3.9045193]
[1721217032557,2.89169,3458.2,3457.6,3.9045193]
[1721217035237,0.05340207,3458.1,3457.6,3.9045193]
[1721217035435,0.05883363,3458.1,3457.6,3.9045193]
[1721217037753,0.05883363,3458.1,3457.4,2.89227]
[1721217038067,2.89169,3458.2,3457.5,1.47781893]
[1721217038361,2.89169,3458.2,3457.5,4.37006893]
[1721217038560,2.89169,3458.2,3457.6,1.7]
[1721217039068,0.00500185,3458.1,3457.6,1.7]
[1721217039629,2.89156,3458.4,3457.6,1.7]
[1721217039948,0.00493933,3458.0,3457.6,1.7]
[1721217040272,2.89156,3458.4,3457.6,1.7]
[1721217040473,0.05489358,3457.9,3457.6,1.7]
[1721217040625,2.89164,3458.3,3457.6,2.82513889]
[1721217040822,0.05505702,3458.2,3457.6,1.7]
[1721217041128,0.05505702,3458.2,3457.6,4.59217]
[1721217041965,0.05505702,3458.2,3457.9,2.89185]
[1721217042330,2.89126,3458.7,3457.9,2.89185]
[1721217042565,0.05113863,3458.1,3457.9,2.89185]
[1721217042760,2.89126,3458.7,3457.9,4.03069093]
[1721217043129,0.04436018,3458.6,3457.9,4.03069093]
[1721217043724,0.04436018,3458.6,3457.9,6.92254093]
[1721217043927,2.89133,3458.7,3457.9,1.13884093]
[1721217044179,0.55,3459.0,3457.7,2.89206]
[1721217044180,0.04219488,3458.5,3457.7,2.89206]
[1721217044331,2.89157,3458.4,3457.6,3.9045193]
[1721217044527,2.89164,3458.3,3457.6,3.9045193]
[1721217044784,2.93257667,3458.3,3457.6,3.9045193]
[1721217044969,2.89167,3458.2,3457.6,3.9045193]
[1721217045345,0.0408557,3458.1,3457.6,3.9045193]
[1721217045739,2.9326157,3458.1,3457.6,3.9045193]
[1721217046447,0.00579849,3458.0,3457.6,3.9045193]
[1721217046635,0.00579849,3458.0,3457.4,2.89234]
[1721217046975,0.00579849,3458.0,3457.3,2.2889]
[1721217047283,0.00579849,3458.0,3457.3,8.06715093]
[1721217047865,0.00579849,3458.0,3457.3,10.95950093]
[1721217048050,0.00579849,3458.0,3457.4,2.89233]
[1721217048395,0.00579849,3458.0,3457.6,4.59217]
[1721217048766,2.89157,3458.4,3457.6,4.59217]
[1721217049063,0.03891919,3458.3,3457.7,2.89209]
[1721217049274,2.89139,3458.6,3457.7,2.89209]
[1721217049438,0.03845602,3458.2,3457.7,2.89209]
[1721217049638,2.89139,3458.6,3457.7,2.89209]
[1721217049893,2.89139,3458.6,3457.8,2.892]
[1721217049894,0.04339524,3458.1,3457.8,2.892]
[1721217050048,2.89136,3458.6,3457.9,0.87500941]
[1721217050247,0.04334171,3458.0,3457.8,2.892]
[1721217050447,2.89136,3458.6,3457.8,2.892]
[1721217050678,0.00459032,3457.9,3457.6,1.7]
[1721217051156,0.03821961,3457.8,3457.6,1.7]
[1721217051978,0.03821961,3457.8,3457.6,4.59215]
[1721217052148,0.03821961,3457.8,3457.7,0.748445]
[1721217053487,0.04289059,3457.8,3457.7,0.748445]
[1721217053658,0.00459032,3457.9,3457.7,0.748445]
[1721217054069,0.00459032,3457.9,3457.7,3.640535]
[1721217056747,0.00459032,3457.9,3457.7,0.748445]
[1721217057085,0.04266264,3457.8,3457.6,4.59216]
[1721217058248,0.04266264,3457.8,3457.7,2.89209]
[1721217058443,0.04266264,3457.8,3457.6,1.7]
[1721217058760,0.04266264,3457.8,3457.6,4.59217]
[1721217059684,0.04266264,3457.8,3457.4,5.78456]
[1721217059899,0.00459032,3457.9,3457.5,2.89225]
[1721217060263,0.00459032,3457.9,3457.6,2.89216]
[1721217060459,0.04274837,3457.8,3457.6,2.89216]
[1721217060690,0.04274837,3457.8,3457.6,3.699493]
[1721217061193,0.04274837,3457.8,3457.6,5.399493]
[1721217061703,0.00459032,3457.9,3457.8,2.89201]
[1721217061912,0.00459032,3457.9,3457.8,5.84185452]
[1721217062263,0.00459032,3457.9,3457.8,8.12652]
[1721217062592,0.00459032,3457.9,3457.8,9.53950721]
[1721217063284,0.00459032,3457.9,3457.8,7.19700721]
[1721217063596,0.00459032,3457.9,3457.2,5.69247]
[1721217063771,0.00459032,3457.9,3457.3,2.89236]
[1721217064095,0.00450255,3457.8,3457.4,2.89231]
[1721217064282,0.03980422,3457.8,3457.4,2.89231]
[1721217065858,0.03980422,3457.8,3457.2,5.7849]
[1721217066062,2.89215,3457.7,3457.1,3.9045193]
[1721217066492,0.04035033,3457.7,3457.1,3.9045193]
[1721217066863,2.93252033,3457.7,3457.1,3.9045193]
[1721217067163,2.89219,3457.6,3457.1,3.9045193]
[1721217068331,5.78444,3457.6,3457.1,3.9045193]
[1721217068623,3.8700378,3457.6,3457.1,3.9045193]
[1721217068831,0.00642795,3457.5,3457.1,3.9045193]
[1721217069428,2.92656066,3457.7,3457.1,3.9045193]
[1721217069614,0.0059363,3457.4,3457.1,3.9045193]
[1721217069813,2.92656066,3457.7,3457.1,3.9045193]
[1721217070326,0.03444066,3457.7,3457.1,6.7970893]
[1721217070527,2.89659032,3457.9,3457.1,5.79041493]
[1721217070734,2.89659032,3457.9,3457.1,2.89257]
[1721217071827,2.89202,3457.8,3457.0,2.89267]
[1721217072038,2.89659032,3457.9,3456.8,2.92]
[1721217072039,2.89218,3457.6,3456.8,2.92]
[1721217072532,2.3432,3457.4,3456.7,3.9045193]
[1721217072831,6.06516894,3457.4,3456.7,3.9045193]
[1721217072996,0.00587367,3457.3,3456.7,3.9045193]
[1721217073491,2.89834367,3457.3,3456.4,2.89318]
[1721217073692,2.46487367,3457.3,3456.1,1.50863079]
[1721217073894,2.46487367,3457.3,3455.8,3.34718095]
[1721217073895,5.28915,3456.6,3455.8,3.34718095]
[1721217074131,5.28915,3456.6,3455.8,2.89368]
[1721217074132,2.89311,3456.5,3455.8,2.89368]
[1721217074296,2.89802768,3456.5,3455.8,2.89368]
[1721217074901,2.89802768,3456.5,3455.6,6.7982993]
[1721217075104,2.89802768,3456.5,3455.7,2.89375]
[1721217075898,2.89335,3456.2,3455.3,2.4262]
[1721217076107,2.89345,3456.1,3455.2,3.9045193]
[1721217076405,2.89351,3456.0,3455.2,3.9045193]
[1721217076606,2.89367,3455.9,3455.2,3.9045193]
[1721217076919,3.50921189,3455.9,3454.9,9.1918293]
[1721217077119,3.50921189,3455.9,3455.0,2.89435]
[1721217077323,2.89386,3455.6,3454.9,3.9045193]
[1721217078240,2.459,3456.0,3454.9,3.9045193]
[1721217078542,0.03654073,3455.9,3455.2,2.89411]
[1721217078780,0.03654073,3455.9,3455.5,2.89393]
[1721217079048,0.03654073,3455.9,3455.8,1.7]
[1721217079401,2.89294,3456.7,3455.8,4.59368]
[1721217079640,2.89302,3456.6,3455.8,4.59368]
[1721217079860,0.03398117,3456.6,3455.9,2.89357]
[1721217080058,0.03398117,3456.6,3456.1,2.89337]
[1721217080706,0.03398117,3456.6,3456.0,2.89351]
[1721217080902,0.03398117,3456.6,3456.1,2.89342]
[1721217081144,0.03398117,3456.6,3456.3,1.7]
[1721217081356,0.03398117,3456.6,3456.4,3.06316]
[1721217081555,0.03398117,3456.6,3456.3,1.7]
[1721217081556,2.89272,3457.0,3456.3,1.7]
[1721217081703,2.89272,3457.0,3455.6,1.7]
[1721217081704,2.89319,3456.4,3455.6,1.7]
[1721217081908,2.89319,3456.4,3455.5,6.7984193]
[1721217082109,0.00375358,3456.3,3455.7,2.89371]
[1721217082427,2.89293,3456.7,3455.9,2.89354]
[1721217082630,0.03176426,3456.2,3455.7,2.8937]
[1721217082847,4.304268,3456.7,3455.6,4.59385]
[1721217082848,2.8932,3456.4,3455.6,4.59385]
[1721217083057,0.03144906,3456.1,3455.7,2.89375]
[1721217083241,2.8931,3456.5,3455.7,2.89375]
[1721217083439,0.02870255,3456.0,3455.6,4.59385]
[1721217083639,5.3276,3457.0,3455.7,2.89376]
[1721217083640,2.89307,3456.6,3455.7,2.89376]
[1721217083835,0.02878324,3455.9,3455.7,2.89376]
[1721217084124,2.89292,3456.8,3456.0,4.5935]
[1721217084329,2.89295,3456.7,3456.0,1.7]
[1721217084528,2.89295,3456.7,3456.0,4.59349]
[1721217084732,3.44278,3456.9,3456.0,5.052839]
[1721217085066,3.44278,3456.9,3456.0,4.59349]
[1721217085067,2.89287,3456.8,3456.0,4.59349]
[1721217085225,2.89285,3456.8,3456.0,4.59349]
[1721217085922,5.22032,3457.0,3456.1,2.89341]
[1721217086140,2.89277,3456.9,3456.1,2.89341]
[1721217086829,2.89688231,3456.8,3456.1,2.89341]
[1721217087576,2.89294,3456.7,3455.7,2.89373]
[1721217087777,2.89306,3456.6,3455.7,2.89369]
[1721217088074,2.8931,3456.5,3455.6,6.7983493]
[1721217088220,2.8931,3456.5,3455.6,2.89383]
[1721217088587,2.89306,3456.6,3455.2,3.9045193]
[1721217088588,2.89358,3456.0,3455.2,3.9045193]
[1721217088723,2.551558,3455.9,3454.9,2.89443]
[1721217088923,5.010558,3455.9,3455.0,4.0]
[1721217089333,2.89377,3455.7,3454.9,2.89439]
[1721217089541,2.89377,3455.7,3454.8,6.7990093]
[1721217089738,0.02719818,3455.6,3454.8,6.7990093]
[1721217089964,0.02719818,3455.6,3454.9,2.89443]
[1721217090462,2.89377,3455.7,3454.9,2.89443]
[1721217090661,3.9735768,3455.7,3454.9,2.89443]
[1721217090865,0.02711217,3455.6,3454.9,2.89443]
[1721217091228,0.02711217,3455.6,3454.5,3.9045193]
[1721217091229,2.89408,3455.4,3454.5,3.9045193]
[1721217091429,2.89408,3455.4,3454.4,2.89482]
[1721217091661,2.89427,3455.1,3454.1,6.7995593]
[1721217091833,5.93489646,3455.1,3454.1,6.7995593]
[1721217092033,2.92237027,3455.0,3454.1,6.7995593]
[1721217092436,2.92237027,3455.0,3454.2,2.89501]
[1721217093359,2.89445,3454.9,3454.1,3.9045193]
[1721217093550,2.2959,3454.8,3454.1,3.9045193]
[1721217093749,3.43822815,3454.8,3454.1,6.7995893]
[1721217094069,0.00271453,3454.7,3454.2,1.7]
[1721217094258,0.00271453,3454.7,3454.2,4.59497]
[1721217094640,3.47594646,3455.1,3454.2,4.59497]
[1721217094874,3.47594646,3455.1,3454.3,2.89494]
[1721217095075,0.02692907,3455.0,3454.3,2.89494]
[1721217096161,2.92128907,3455.0,3454.3,2.89494]
[1721217096364,0.02692907,3455.0,3454.3,2.89494]
[1721217096867,2.92129907,3455.0,3454.1,2.89503]
[1721217097066,3.80129362,3455.0,3454.2,2.89502]
[1721217097282,3.80129362,3455.0,3454.3,2.89492]
[1721217097681,0.0022599,3454.9,3454.1,5.79007]
[1721217097843,0.0022599,3454.9,3454.2,2.89502]
[1721217098042,0.02751344,3454.8,3454.2,2.89502]
[1721217099484,0.02751344,3454.8,3454.1,2.89505]
[1721217099797,0.02751344,3454.8,3454.0,4.59518]
[1721217099798,0.02751344,3454.8,3454.2,2.89501]
[1721217101195,0.00120031,3454.7,3454.2,2.89501]
[1721217103787,0.00120031,3454.7,3454.3,2.89493]
[1721217104084,0.02751344,3454.8,3454.3,2.89493]
[1721217104247,0.00106593,3454.6,3454.3,2.89493]
[1721217104447,0.00120031,3454.7,3454.3,2.89493]
[1721217104847,2.89437,3455.0,3454.3,2.89493]
[1721217105084,3.77165965,3455.0,3454.3,2.89493]
[1721217105285,3.77165965,3455.0,3454.1,2.89503]
[1721217105610,0.00146905,3454.9,3454.1,2.89503]
[1721217106686,0.00146905,3454.9,3454.2,2.89497]
[1721217107701,0.00146905,3454.9,3454.3,2.89491]
[1721217108223,0.00146905,3454.9,3454.2,2.895]
[1721217108391,0.00146905,3454.9,3454.3,2.89494]
[1721217110131,0.00146905,3454.9,3454.1,2.89503]
[1721217110424,0.0269584,3454.8,3454.1,2.89503]
[1721217110726,0.0269584,3454.8,3454.3,2.89492]
[1721217111127,0.0269584,3454.8,3454.1,2.89503]
[1721217111289,0.0269584,3454.8,3454.1,5.79008]
[1721217111489,0.0269584,3454.8,3454.2,2.89499]
[1721217112790,0.0269584,3454.8,3454.3,2.89493]
[1721217114540,0.0269584,3454.8,3454.4,2.89485]
[1721217115035,5.89433,3455.1,3454.4,2.89485]
[1721217115241,0.00084179,3454.7,3454.4,2.89485]
[1721217115425,5.89433,3455.1,3454.4,2.89485]
[1721217115743,2.3321,3455.6,3454.8,2.89446]
[1721217115953,2.3321,3455.6,3454.5,2.8947]
[1721217115954,2.89403,3455.4,3454.5,2.8947]
[1721217116267,2.89423,3455.2,3454.3,6.7993993]
[1721217116410,2.89423,3455.2,3454.4,2.89483]
[1721217116614,2.3321,3455.3,3454.4,2.89483]
[1721217116911,2.3321,3455.3,3454.3,3.9045193]
[1721217116912,2.89429,3455.1,3454.3,3.9045193]
[1721217117110,2.89429,3455.1,3454.2,2.89495]
[1721217117321,2.89438,3455.0,3454.2,5.78989]
[1721217117521,2.89438,3455.0,3454.2,2.89494]
[1721217117814,2.89438,3455.0,3454.3,2.89493]
[1721217118013,0.626778,3454.9,3454.3,2.89493]
[1721217118209,0.47911,3455.2,3454.3,2.89493]
[1721217118439,3.47911,3455.2,3454.4,2.89484]
[1721217118739,5.8942,3455.2,3454.5,2.89476]
[1721217119902,2.89428,3455.1,3454.3,2.89493]
[1721217120107,2.89436,3455.0,3454.3,2.89493]
[1721217120334,0.878856,3454.9,3454.3,2.89493]
[1721217121344,2.89436,3455.0,3454.3,2.89493]
[1721217121541,5.8942,3455.2,3454.4,2.89485]
[1721217122496,3.0,3455.2,3454.5,2.89474]
[1721217122702,5.3321,3455.3,3454.5,2.89474]
[1721217122942,2.8942,3455.2,3454.3,5.7898]
[1721217123101,4.006235,3455.2,3454.3,2.89487]
[1721217123527,4.006235,3455.2,3454.3,2.89486]
[1721217123736,4.006235,3455.2,3454.5,2.89475]
[1721217124123,5.3321,3455.3,3454.5,2.89475]
[1721217124447,5.89411,3455.3,3454.5,5.36565]
[1721217124797,3.0,3455.3,3454.6,2.89468]
[1721217125001,3.0,3455.5,3454.6,2.89468]
[1721217125237,0.55,3455.4,3454.6,2.89468]
[1721217125411,6.44402,3455.4,3454.6,2.89468]
[1721217125611,7.91547,3455.4,3454.6,2.89468]
[1721217125838,2.89411,3455.3,3454.6,2.89468]
[1721217126011,3.0,3455.2,3454.5,5.36565]
[1721217126401,5.89418,3455.2,3454.5,2.89475]
[1721217127102,3.0,3455.2,3454.5,2.89475]
[1721217127302,3.0,3455.3,3454.5,5.78946]
[1721217127535,3.0,3455.3,3454.6,2.89468]
[1721217127754,2.02145,3455.4,3454.6,2.89468]
[1721217127755,5.02145,3455.4,3454.6,2.89468]
[1721217127926,1.56449,3455.3,3454.6,2.89468]
[1721217128126,4.56449,3455.3,3454.6,2.89468]
[1721217128531,3.0,3455.2,3454.7,2.89458]
[1721217128874,3.0,3455.4,3454.8,2.89451]
[1721217129077,5.459,3455.5,3454.8,2.89451]
[1721217129281,3.0,3455.5,3454.8,2.89451]
[1721217129733,5.27048,3455.6,3454.8,2.89444]
[1721217129734,2.3766,3455.6,3454.8,2.89444]
[1721217129926,5.2705,3455.6,3454.8,2.89444]
[1721217130627,5.2705,3455.6,3454.8,5.78891]
[1721217130831,5.2705,3455.6,3454.8,5.78889]
[1721217131253,2.89394,3455.5,3454.8,2.89444]
[1721217132530,2.89394,3455.5,3454.6,2.89465]
[1721217132755,2.89394,3455.5,3454.5,1.7]
[1721217132756,2.3191,3455.4,3454.3,3.9045193]
[1721217132959,5.35344,3454.9,3454.1,2.89503]
[1721217133266,5.35344,3454.9,3454.0,2.89517]
[1721217133267,2.3191,3454.7,3454.0,2.89517]
[1721217133645,2.3191,3454.7,3454.0,5.7903]
[1721217133883,0.824779,3454.8,3454.1,2.89508]
[1721217134242,1.41960915,3454.8,3454.1,2.89508]
[1721217134556,4.31414915,3454.8,3454.0,2.89513]
[1721217134771,4.59953359,3454.7,3453.8,2.89534]
[1721217134938,0.59483015,3454.6,3453.9,2.89527]
[1721217136864,0.59483015,3454.5,3453.9,2.89527]
[1721217137064,0.59483015,3454.6,3453.9,2.89527]
[1721217138163,0.59483015,3454.6,3454.0,2.89519]
[1721217139381,0.59483015,3454.7,3454.0,2.89519]
[1721217139585,0.59483015,3454.6,3454.0,2.89519]
[1721217140565,0.59483015,3454.6,3453.9,2.89524]
[1721217142561,3.48952015,3454.6,3453.9,2.89524]
[1721217142769,2.89477,3454.5,3453.7,9.2770393]
[1721217142973,5.24597,3454.5,3453.7,6.7999393]
[1721217143157,6.05610144,3454.5,3453.7,6.7999393]